bitfinex-derivatives/quotes_ETHF0:USTF0_20250911
["timestamp","ask_amount","ask_price","bid_price","bid_amount"]
[1757633027156,0.5671,4469.5,4469.4,5.02994451]
[1757633027451,0.5671,4469.5,4469.4,3.4348]
[1757633028748,0.897,4469.5,4469.4,3.4348]
[1757633030357,4.897,4469.5,4469.4,3.4348]
[1757633032554,4.897,4469.5,4469.4,3.2078]
[1757633032758,0.897,4469.5,4469.4,3.4348]
[1757633033659,0.4401,4469.3,4469.2,0.227]
[1757633033953,0.77,4469.3,4469.2,0.227]
[1757633034158,0.77,4469.3,4468.7,0.227]
[1757633034159,0.901,4469.0,4468.7,0.227]
[1757633034662,0.3299,4468.9,4468.8,40.8]
[1757633035261,0.77,4468.8,4468.7,0.227]
[1757633035760,0.77,4468.8,4468.7,41.027]
[1757633037858,0.3299,4468.8,4468.7,41.027]
[1757633041256,0.3299,4468.8,4468.7,45.027]
[1757633041757,0.3266,4469.4,4469.1,0.40261]
[1757633041954,0.3266,4469.4,4469.3,3.2078]
[1757633042352,0.3266,4469.4,4469.3,44.0078]
[1757633049567,0.3266,4469.4,4469.3,44.2348]
[1757633052870,4.7344,4469.4,4469.3,3.4348]
[1757633053565,4.7344,4469.4,4469.3,0.227]
[1757633055566,0.4589,4469.0,4468.9,40.8]
[1757633055760,0.4589,4469.0,4468.9,41.027]
[1757633057772,0.4589,4469.0,4468.9,40.8]
[1757633057971,0.7344,4468.9,4468.8,3.4322]
[1757633058372,0.7344,4468.9,4468.8,44.2322]
[1757633059563,0.7344,4468.9,4468.8,44.4592]
[1757633060361,0.7344,4468.9,4468.8,41.2514]
[1757633061363,0.7344,4468.9,4468.8,0.4514]
[1757633061972,4.7344,4468.9,4468.8,0.2244]
[1757633062171,4.7344,4468.9,4468.8,0.4514]
[1757633062971,4.7344,4468.9,4468.8,0.2244]
[1757633066868,4.7344,4468.9,4468.4,41.0796]
[1757633067071,0.4078,4467.8,4467.7,3.2078]
[1757633067373,0.7344,4467.8,4467.7,3.2078]
[1757633067973,0.3152,4467.7,4467.6,41.027]
[1757633068563,0.3152,4467.7,4467.6,40.8]
[1757633069975,0.7403,4467.6,4467.5,0.227]
[1757633070372,0.7403,4467.6,4467.5,41.027]
[1757633075281,0.7403,4467.6,4467.5,0.227]
[1757633079181,0.521,4467.3,4467.2,0.227]
[1757633080581,0.7403,4467.3,4467.2,0.227]
[1757633080782,0.1293,4467.5,4467.0,40.8]
[1757633080783,0.4251,4467.1,4467.0,40.8]
[1757633080982,0.7403,4467.1,4467.0,40.8]
[1757633082180,0.521,4466.3,4466.2,3.2078]
[1757633082385,0.3152,4466.3,4466.2,5.24071222]
[1757633082692,0.3152,4466.3,4466.2,46.04071222]
[1757633086388,0.3152,4466.3,4466.2,44.2348]
[1757633087887,0.3152,4466.3,4466.2,41.027]
[1757633088193,0.3152,4466.3,4466.2,40.8]
[1757633088391,0.3152,4466.3,4466.2,41.027]
[1757633090394,0.4251,4466.1,4466.0,0.227]
[1757633090694,0.7403,4466.1,4466.0,0.227]
[1757633090893,0.7403,4466.1,4466.0,41.027]
[1757633096806,0.7403,4466.1,4466.0,40.8]
[1757633097001,0.2058,4465.4,4465.1,3.2078]
[1757633097202,0.521,4465.4,4465.2,0.227]
[1757633097512,0.521,4465.4,4465.3,40.8]
[1757633099706,0.3152,4465.4,4465.3,40.8]
[1757633100005,0.4583,4466.0,4465.3,45.02395]
[1757633100210,0.4583,4466.0,4465.4,0.45093]
[1757633100711,0.329,4465.9,4465.4,0.227]
[1757633101611,0.1361,4465.5,4465.4,0.227]
[1757633101910,0.4651,4465.5,4465.4,0.227]
[1757633104106,0.329,4465.4,4465.3,40.8]
[1757633104302,0.4651,4465.5,4465.3,45.027]
[1757633104504,0.329,4465.9,4465.3,45.027]
[1757633104806,0.329,4465.9,4465.6,3.2078]
[1757633104999,0.329,4465.9,4465.7,0.227]
[1757633105809,0.1293,4466.0,4465.7,0.227]
[1757633106007,0.329,4465.9,4465.7,0.227]
[1757633106304,0.1293,4466.0,4465.7,0.227]
[1757633106511,0.329,4465.9,4465.7,0.227]
[1757633106699,0.1293,4466.0,4465.7,0.227]
[1757633106906,0.329,4465.9,4465.7,0.227]
[1757633107704,0.1293,4466.0,4465.7,0.227]
[1757633107904,0.329,4465.9,4465.7,0.227]
[1757633108111,0.1293,4466.0,4465.7,0.227]
[1757633108313,0.329,4465.9,4465.7,0.227]
[1757633108612,0.1293,4466.0,4465.7,0.227]
[1757633108912,0.1361,4466.0,4465.8,4.0]
[1757633109214,0.1361,4466.0,4465.6,3.2078]
[1757633109215,0.329,4465.8,4465.6,3.2078]
[1757633109406,0.5342,4465.8,4465.7,0.227]
[1757633109605,0.5342,4465.8,4465.7,41.027]
[1757633111812,0.5342,4465.8,4465.7,40.8]
[1757633112015,0.5342,4465.8,4465.7,41.027]
[1757633114514,0.2052,4465.4,4465.1,5.00659556]
[1757633114815,0.7607,4465.2,4465.1,3.2078]
[1757633115005,0.7607,4465.2,4465.1,44.2348]
[1757633115409,0.1361,4465.5,4465.1,44.2348]
[1757633115410,0.329,4465.4,4465.1,44.2348]
[1757633115820,0.1361,4465.5,4465.1,44.2348]
[1757633116013,0.1361,4465.5,4465.1,45.98277778]
[1757633116722,0.329,4465.4,4465.1,45.98277778]
[1757633117115,0.1361,4465.5,4465.1,45.98277778]
[1757633118414,0.329,4465.4,4465.1,45.98277778]
[1757633118620,0.329,4465.4,4465.1,45.75577778]
[1757633118817,0.2052,4465.3,4465.2,0.227]
[1757633119014,0.329,4465.2,4465.1,45.75577778]
[1757633119324,0.329,4465.2,4465.1,45.98277778]
[1757633121226,0.4651,4465.5,4465.1,45.98277778]
[1757633121423,0.1361,4465.5,4465.1,45.98277778]
[1757633121813,0.329,4465.4,4465.1,45.98277778]
[1757633122220,0.1361,4465.5,4465.1,45.98277778]
[1757633123521,0.329,4465.4,4465.1,45.98277778]
[1757633124122,0.1361,4465.5,4465.1,45.98277778]
[1757633124419,0.329,4465.4,4465.1,45.98277778]
[1757633124625,0.1361,4465.5,4465.1,45.98277778]
[1757633124816,0.329,4465.4,4465.1,45.98277778]
[1757633125020,0.5342,4465.2,4465.1,45.98277778]
[1757633125220,0.329,4465.2,4465.1,45.75577778]
[1757633125424,0.329,4465.2,4465.1,45.98277778]
[1757633127423,0.1361,4465.5,4465.1,45.98277778]
[1757633127624,0.1361,4465.5,4465.1,5.58574778]
[1757633127822,0.1361,4465.5,4465.2,1.99176921]
[1757633128023,0.1361,4465.5,4465.3,0.227]
[1757633128323,0.1361,4465.5,4465.4,40.8]
[1757633129223,3.3371,4466.5,4465.4,45.02393999]
[1757633129224,0.309,4466.2,4465.4,45.02393999]
[1757633129410,0.1293,4466.5,4466.1,3.2078]
[1757633129615,0.309,4466.4,4466.2,0.227]
[1757633131925,0.1293,4466.5,4466.2,0.227]
[1757633132223,0.309,4466.4,4466.2,0.227]
[1757633132423,0.1293,4466.5,4466.2,0.227]
[1757633132824,0.309,4466.4,4466.2,0.227]
[1757633133622,0.309,4466.4,4466.3,40.8]
[1757633136225,0.309,4466.7,4466.3,46.79176921]
[1757633136423,0.1293,4467.0,4466.6,3.2078]
[1757633136624,0.309,4466.9,4466.7,0.227]
[1757633137121,0.5252,4466.9,4466.7,0.227]
[1757633138021,0.309,4466.9,4466.8,0.227]
[1757633138229,0.309,4466.9,4466.6,3.2078]
[1757633138430,0.309,4466.9,4466.8,0.227]
[1757633138924,0.5252,4466.9,4466.8,0.227]
[1757633139515,0.2162,4466.7,4466.6,3.2078]
[1757633139720,0.7426,4466.7,4466.6,3.4348]
[1757633144232,0.7426,4466.7,4466.6,3.2078]
[1757633144428,0.7426,4466.7,4466.6,3.4348]
[1757633146735,0.5252,4466.7,4466.6,3.4348]
[1757633148729,0.7426,4466.7,4466.6,3.4348]
[1757633149429,0.7426,4466.7,4466.3,40.8]
[1757633149430,0.7426,4466.4,4466.3,40.8]
[1757633149630,0.7426,4466.4,4466.3,41.027]
[1757633155335,0.7426,4466.4,4466.3,40.8]
[1757633155531,0.309,4465.9,4465.5,3.2078]
[1757633155751,0.5252,4465.7,4465.6,0.227]
[1757633155935,0.5252,4465.7,4465.6,41.027]
[1757633156535,0.5252,4465.7,4465.6,40.8]
[1757633156736,0.5252,4465.7,4465.6,41.027]
[1757633157238,0.3383,4465.5,4465.2,1.99176921]
[1757633157437,0.5252,4465.4,4465.3,0.227]
[1757633157638,0.5252,4465.4,4465.3,41.027]
[1757633158135,0.5252,4465.4,4465.3,40.8]
[1757633158345,0.5252,4465.4,4465.3,41.027]
[1757633163643,0.5252,4465.4,4465.3,40.8]
[1757633163950,0.853,4465.0,4464.7,1.77266847]
[1757633164247,0.2996,4464.9,4464.4,3.2078]
[1757633164444,0.2996,4464.9,4464.8,32.471]
[1757633164852,0.2996,4464.9,4464.8,73.271]
[1757633166545,0.2996,4464.9,4464.8,41.027]
[1757633170837,0.4262,4465.0,4464.8,41.027]
[1757633171050,0.1266,4465.0,4464.9,3.2078]
[1757633171452,0.4262,4465.0,4464.9,3.2078]
[1757633173947,0.1221,4465.5,4464.9,7.43177]
[1757633174148,0.1221,4465.5,4465.4,3.2078]
[1757633174462,0.1221,4465.5,4465.4,44.2348]
[1757633175563,0.1221,4466.0,4465.4,48.2348]
[1757633175756,0.1221,4466.0,4465.4,44.41169087]
[1757633176457,0.4217,4466.0,4465.9,3.2078]
[1757633176656,0.4217,4466.0,4465.9,3.4348]
[1757633177059,0.4217,4466.0,4465.9,44.2348]
[1757633179948,0.4217,4466.0,4465.9,44.0078]
[1757633180154,0.4217,4466.0,4465.9,44.2348]
[1757633180859,0.4217,4466.0,4465.9,44.0078]
[1757633181157,0.4217,4466.0,4465.9,41.027]
[1757633181361,0.8485,4466.0,4465.9,0.227]
[1757633181854,0.8485,4466.0,4465.9,41.027]
[1757633182054,0.8485,4466.0,4465.9,0.227]
[1757633182249,0.853,4465.5,4465.4,3.2078]
[1757633182455,0.853,4465.5,4465.4,44.2348]
[1757633189661,0.853,4465.5,4465.4,44.0078]
[1757633189864,0.853,4465.5,4465.4,44.2348]
[1757633190063,0.6362,4465.5,4465.4,44.2348]
[1757633190469,0.4262,4465.5,4465.4,44.2348]
[1757633190769,0.2957,4465.8,4465.4,44.2348]
[1757633191967,0.2957,4465.9,4465.4,44.2348]
[1757633192170,0.1221,4466.0,4465.4,44.2348]
[1757633192771,0.2957,4465.9,4465.4,44.2348]
[1757633193467,0.1221,4466.0,4465.4,44.2348]
[1757633193664,0.1221,4466.0,4465.9,3.2078]
[1757633193865,0.1221,4466.0,4465.9,3.4348]
[1757633194267,0.4178,4466.0,4465.9,3.4348]
[1757633197565,0.1238,4466.0,4465.9,3.4348]
[1757633197769,0.4195,4466.0,4465.9,3.4348]
[1757633197969,0.2957,4466.4,4465.9,3.4348]
[1757633198270,0.2957,4466.4,4466.0,40.8]
[1757633198467,0.1221,4466.5,4466.1,0.227]
[1757633198663,0.2957,4466.4,4466.1,0.227]
[1757633200375,0.707,4466.3,4466.2,0.227]
[1757633201280,0.4113,4466.3,4466.2,0.227]
[1757633201777,0.707,4466.3,4466.2,0.227]
[1757633201966,0.707,4466.3,4466.0,40.8]
[1757633201967,0.4113,4466.3,4466.0,40.8]
[1757633202276,0.707,4466.2,4466.1,0.227]
[1757633207765,0.2957,4466.1,4466.0,40.8]
[1757633207968,0.2957,4466.1,4466.0,41.027]
[1757633214273,0.707,4466.1,4466.0,0.227]
[1757633215980,0.8308,4466.0,4465.9,3.2078]
[1757633216180,0.8308,4466.0,4465.9,3.4348]
[1757633216382,0.8308,4466.0,4465.9,44.2348]
[1757633217977,4.5351,4466.0,4465.5,1.99176921]
[1757633218181,0.5285,4465.0,4464.9,2.7828462]
[1757633218377,0.7221,4464.5,4464.4,3.2078]
[1757633218579,0.8442,4464.5,4464.3,0.227]
[1757633219074,4.052,4464.5,4464.3,0.227]
[1757633219677,4.052,4464.5,4464.2,40.8]
[1757633219678,7.7318,4464.5,4464.2,40.8]
[1757633219885,0.7221,4464.3,4464.2,0.227]
[1757633220178,0.7221,4464.3,4464.0,0.227]
[1757633220379,0.7221,4464.3,4464.0,0.5445]
[1757633220580,0.4019,4464.3,4464.0,0.5445]
[1757633220780,0.7221,4464.1,4464.0,0.5445]
[1757633220984,0.7221,4464.1,4464.0,0.7582]
[1757633221580,0.2231,4464.4,4464.0,0.7675]
[1757633221886,0.4208,4464.4,4464.3,0.731]
[1757633222077,0.625,4464.4,4464.3,0.958]
[1757633222289,0.9452,4464.4,4464.3,0.958]
[1757633224088,0.9452,4464.4,4464.3,0.227]
[1757633224888,0.9452,4464.4,4464.3,0.5445]
[1757633225489,0.9452,4464.4,4464.3,0.7582]
[1757633227892,0.9452,4464.4,4464.3,0.5312]
[1757633230486,0.625,4464.4,4464.3,0.731]
[1757633231194,0.9452,4464.4,4464.3,0.731]
[1757633234892,0.9452,4464.4,4464.3,0.5312]
[1757633235090,0.9452,4464.4,4464.0,0.354]
[1757633235284,0.9452,4464.4,4464.1,0.3175]
[1757633235490,0.4019,4463.8,4463.7,40.8]
[1757633235684,0.3202,4463.7,4463.6,0.5445]
[1757633235896,0.7221,4463.7,4463.6,0.5445]
[1757633236087,0.7221,4463.7,4463.6,41.3445]
[1757633236286,0.7221,4463.7,4463.6,40.8]
[1757633236791,0.1977,4464.0,4463.9,0.4135]
[1757633237300,0.1977,4464.0,4463.9,0.731]
[1757633237495,0.7221,4464.0,4463.9,0.731]
[1757633237695,3.9299,4464.0,4463.9,0.3175]
[1757633237882,0.4019,4464.0,4463.9,0.731]
[1757633238985,0.1977,4464.0,4463.9,0.731]
[1757633239192,0.7221,4464.3,4464.2,0.731]
[1757633240587,0.7221,4464.3,4464.2,0.3175]
[1757633241192,0.7221,4464.3,4464.0,0.3175]
[1757633241399,0.7221,4464.3,4463.6,0.3175]
[1757633241704,0.7221,4463.7,4463.6,0.5312]
[1757633242192,0.1238,4463.5,4463.0,3.3348]
[1757633242392,0.7221,4462.9,4462.8,0.90129477]
[1757633242586,3.2078,4463.3,4463.2,0.4135]
[1757633242785,3.2078,4463.3,4463.2,0.731]
[1757633244399,3.4055,4463.3,4463.2,0.731]
[1757633244693,3.6097,4463.3,4463.2,0.731]
[1757633244899,3.9299,4463.3,4463.2,0.731]
[1757633245200,4.1531,4463.3,4463.2,0.731]
[1757633247101,0.7221,4463.2,4463.1,0.5312]
[1757633247599,0.4019,4463.2,4462.9,0.54]
[1757633247795,0.3207,4463.1,4462.9,0.54]
[1757633247993,3.7517,4463.3,4462.9,0.9647]
[1757633248197,3.6438,4463.3,4463.2,0.7377]
[1757633248895,3.8467,4463.3,4463.2,0.7377]
[1757633249402,3.6438,4463.3,4463.2,0.7377]
[1757633251198,3.8467,4463.3,4463.2,0.7377]
[1757633251501,4.1674,4463.3,4463.2,0.7377]
[1757633252398,4.1674,4463.3,4462.9,0.227]
[1757633252593,0.9596,4463.3,4462.9,0.227]
[1757633252796,4.1674,4463.3,4462.8,0.17029477]
[1757633252995,0.7364,4462.9,4462.8,0.17029477]
[1757633253595,0.436,4463.3,4463.2,0.7377]
[1757633253995,0.2232,4463.3,4463.2,0.7377]
[1757633254303,0.2232,4463.3,4463.2,0.9647]
[1757633256998,0.2232,4463.3,4463.2,4.9647]
[1757633257204,0.2232,4463.3,4463.2,5.18875]
[1757633257699,0.2232,4463.3,4463.2,45.7647]
[1757633258895,3.2078,4464.3,4463.2,45.98875]
[1757633259095,0.3207,4464.5,4464.2,0.7377]
[1757633259295,0.5335,4464.5,4464.4,0.4247]
[1757633259501,0.5335,4464.5,4464.4,0.7377]
[1757633259690,0.2128,4464.5,4464.4,0.7377]
[1757633260302,0.5335,4464.5,4464.4,0.7377]
[1757633261398,3.2078,4464.9,4464.4,0.7377]
[1757633261399,3.5285,4464.9,4464.4,0.7377]
[1757633261591,3.9442,4464.9,4464.8,0.4247]
[1757633261791,3.9442,4464.9,4464.8,0.7377]
[1757633262509,3.9442,4464.9,4464.8,0.2153]
[1757633262802,3.9442,4464.9,4464.8,0.7377]
[1757633262998,0.7364,4464.9,4464.8,0.7377]
[1757633269007,3.9442,4464.9,4464.8,0.7377]
[1757633269304,3.9442,4464.9,4464.1,3.2078]
[1757633269305,0.2128,4464.2,4464.1,0.9647]
[1757633269697,0.4157,4464.2,4464.1,0.9647]
[1757633269898,0.7364,4464.2,4464.1,0.9647]
[1757633274113,0.7364,4463.7,4463.6,3.9455]
[1757633274314,0.7364,4463.7,4463.6,4.1725]
[1757633275309,0.7364,4463.3,4463.0,3.7478]
[1757633275509,0.3207,4463.6,4463.0,3.5566]
[1757633275710,0.5335,4463.6,4463.5,0.8595]
[1757633275907,0.7364,4463.6,4463.5,0.7377]
[1757633276407,0.2128,4464.0,4463.9,0.313]
[1757633276614,3.7413,4464.3,4464.2,0.4247]
[1757633276809,3.7413,4464.3,4464.2,0.7377]
[1757633277016,3.9442,4464.3,4464.2,0.7377]
[1757633280311,0.3179,4464.6,4464.5,0.1184]
[1757633280513,3.5257,4464.8,4464.5,0.5324]
[1757633280715,0.197,4464.7,4464.6,0.7278]
[1757633281007,0.5149,4464.7,4464.6,41.5278]
[1757633282322,0.197,4464.7,4464.6,41.5278]
[1757633282512,3.2078,4464.8,4464.6,41.214]
[1757633282712,3.4048,4464.8,4464.7,0.7278]
[1757633282914,3.7227,4464.8,4464.7,0.7278]
[1757633284221,3.9301,4464.8,4464.7,0.7278]
[1757633285718,3.9301,4464.8,4464.7,0.9548]
[1757633289020,0.7223,4464.8,4464.7,0.9548]
[1757633291924,0.7223,4464.8,4464.7,0.7278]
[1757633292121,0.7223,4464.8,4464.7,0.4287]
[1757633292329,0.7223,4464.8,4464.7,0.227]
[1757633293425,0.3179,4464.7,4464.6,40.8]
[1757633293625,0.3179,4464.7,4464.6,41.027]
[1757633294923,0.3179,4464.7,4464.6,41.3408]
[1757633296629,0.7223,4464.2,4464.1,3.9356]
[1757633296829,0.7223,4464.2,4464.1,4.1626]
[1757633297026,0.7223,4464.2,4464.1,44.9626]
[1757633297616,0.7223,4464.2,4464.1,44.7356]
[1757633297821,0.7223,4464.2,4464.1,44.9626]
[1757633298629,0.7223,4464.2,4464.1,44.7356]
[1757633298829,0.7223,4464.2,4464.1,44.9626]
[1757633299130,0.197,4464.2,4464.1,44.9626]
[1757633299932,0.3179,4464.5,4464.1,44.9626]
[1757633300231,0.7223,4464.7,4464.6,0.2017]
[1757633300429,0.7223,4464.7,4464.6,0.7425]
[1757633301531,0.7223,4464.7,4464.6,0.4287]
[1757633302736,0.7223,4464.7,4464.6,0.227]
[1757633304635,0.7223,4464.7,4464.6,0.4287]
[1757633304838,0.7223,4464.7,4464.6,0.7425]
[1757633306235,0.7223,4464.7,4464.6,0.9548]
[1757633311335,0.7223,4464.7,4464.6,0.7425]
[1757633312934,3.2078,4464.8,4464.7,0.3069]
[1757633313131,3.2078,4464.8,4464.7,0.705]
[1757633314538,0.3194,4465.2,4464.8,0.3069]
[1757633314837,0.5243,4464.9,4464.8,0.705]
[1757633315239,3.2078,4465.3,4464.8,0.705]
[1757633315535,3.9308,4465.3,4465.2,0.705]
[1757633327246,0.3194,4465.2,4465.1,41.027]
[1757633327546,0.4036,4464.8,4464.7,0.5062]
[1757633327742,0.723,4464.8,4464.7,0.7332]
[1757633328744,0.723,4464.8,4464.7,0.932]
[1757633329637,0.723,4464.8,4464.7,41.732]
[1757633330852,0.723,4464.8,4464.7,41.1981]
[1757633331052,0.723,4464.8,4464.7,41.4241]
[1757633331550,0.723,4464.8,4464.7,41.2253]
[1757633332452,0.723,4464.8,4464.7,0.4253]
[1757633332649,3.6114,4464.8,4464.7,0.226]
[1757633332953,3.9308,4464.8,4464.7,0.226]
[1757633338754,3.9308,4464.8,4464.0,0.1184]
[1757633339048,0.197,4464.3,4464.2,0.5223]
[1757633339253,0.197,4464.3,4464.2,0.7319]
[1757633339254,0.6927,4464.3,4464.2,0.7319]
[1757633339857,0.3934,4464.3,4464.2,0.226]
[1757633340352,0.6927,4464.3,4464.2,0.226]
[1757633340554,0.5217,4464.0,4463.9,0.5223]
[1757633340755,0.821,4464.0,4463.9,0.7483]
[1757633341952,0.821,4464.0,4463.9,0.9579]
[1757633342152,0.821,4464.0,4463.9,0.7319]
[1757633342365,0.821,4464.0,4463.9,0.9579]
[1757633342560,0.6927,4464.0,4463.9,0.9579]
[1757633347962,0.821,4464.0,4463.9,0.9579]
[1757633350666,0.821,4464.0,4463.9,0.7319]
[1757633351058,0.821,4464.0,4463.9,0.5223]
[1757633352366,0.821,4464.0,4463.6,0.3155]
[1757633352570,0.3934,4463.5,4463.4,0.2068]
[1757633352870,0.6927,4463.5,4463.4,0.5223]
[1757633353055,0.197,4463.5,4463.4,0.9579]
[1757633353361,0.6927,4464.2,4464.1,0.7319]
[1757633358066,0.6927,4464.2,4463.8,0.226]
[1757633358665,0.5217,4464.0,4463.9,0.3155]
[1757633358869,0.821,4464.0,4463.9,0.5223]
[1757633359270,0.3934,4463.2,4463.1,0.3155]
[1757633359475,0.6927,4462.9,4462.8,0.69259477]
[1757633362676,0.6927,4462.9,4462.8,0.37709477]
[1757633363365,0.6927,4462.9,4462.8,0.69259477]
[1757633365472,0.6927,4462.9,4462.8,0.90219477]
[1757633374781,0.6927,4462.9,4462.8,0.89369477]
[1757633380287,0.3214,4463.1,4463.0,0.5339]
[1757633380582,0.3214,4463.1,4463.0,0.8489]
[1757633380988,0.5212,4463.1,4463.0,0.8489]
[1757633387686,0.7364,4463.1,4463.0,0.8489]
[1757633388887,0.7364,4463.1,4463.0,0.7234]
[1757633391289,0.7364,4463.1,4463.0,0.8489]
[1757633391486,0.1998,4463.1,4463.0,0.8489]
[1757633391889,0.5212,4463.1,4463.0,0.8489]
[1757633392188,3.2078,4463.7,4463.5,0.5339]
[1757633392490,0.5212,4464.1,4464.0,0.8489]
[1757633395799,0.7364,4464.1,4464.0,0.8489]
[1757633396497,0.7364,4464.1,4463.5,40.9255]
[1757633396689,3.2078,4464.2,4463.5,40.9255]
[1757633396690,0.5212,4463.6,4463.5,41.341]
[1757633397300,0.5212,4463.6,4463.5,41.4665]
[1757633397497,0.1998,4463.6,4463.5,41.4665]
[1757633398099,0.5048,4463.6,4463.5,41.4665]
[1757633398596,0.5117,4463.9,4463.8,0.42]
[1757633398793,0.5117,4463.9,4463.8,0.716]
[1757633399995,0.305,4464.1,4463.8,0.42]
[1757633400200,0.2067,4464.0,4463.9,0.716]
[1757633400401,3.6229,4464.2,4464.1,0.42]
[1757633400700,3.6229,4464.2,4464.1,0.716]
[1757633400892,3.9279,4464.2,4464.1,0.716]
[1757633406418,3.9279,4464.2,4464.1,0.5067]
[1757633414318,3.9279,4464.2,4464.1,0.716]
[1757633414518,3.2078,4464.2,4464.1,0.94001]
[1757633414716,3.2078,4464.2,4464.1,0.942]
[1757633415113,3.7195,4464.2,4464.1,0.942]
[1757633415312,3.9279,4464.2,4464.1,0.942]
[1757633422917,0.305,4464.5,4464.1,0.646]
[1757633423119,3.4145,4464.7,4464.6,0.716]
[1757633423424,3.4145,4464.7,4464.6,0.942]
[1757633423616,3.7195,4464.7,4464.6,41.742]
[1757633424118,0.5117,4464.7,4464.6,41.742]
[1757633428114,0.5117,4464.7,4464.6,41.3067]
[1757633428426,0.7141,4464.7,4464.6,0.7516]
[1757633428923,0.7141,4464.7,4464.6,0.9587]
[1757633431218,0.7141,4464.7,4464.6,0.7327]
[1757633431422,0.7141,4464.7,4464.6,0.9587]
[1757633431723,0.7141,4464.7,4463.8,0.3155]
[1757633431724,0.4004,4463.9,4463.8,0.3155]
[1757633432023,0.7172,4463.9,4463.8,0.7516]
[1757633432519,0.5148,4463.9,4463.8,0.9587]
[1757633433523,3.7226,4464.2,4464.1,0.4172]
[1757633433725,3.7226,4464.2,4464.1,0.7327]
[1757633433920,3.925,4464.2,4464.1,0.9587]
[1757633436425,3.925,4464.2,4464.1,0.9587]
[1757633441430,3.2078,4464.2,4464.1,0.9587]
[1757633441730,0.7172,4464.7,4464.6,0.2101]
[1757633441924,0.5172,4464.5,4464.4,0.5415]
[1757633442131,0.4004,4464.2,4464.1,0.2101]
[1757633442331,0.7172,4464.2,4464.1,0.7516]
[1757633442733,0.1168,4464.0,4463.9,1.60373214]
[1757633442933,0.7172,4463.8,4463.7,1.60373214]
[1757633443134,0.7172,4463.8,4463.7,1.82973214]
[1757633443427,0.7172,4463.8,4463.7,2.03983214]
[1757633443627,0.7172,4463.8,4463.7,2.35533214]
[1757633444131,4.7172,4463.8,4463.7,1.60373214]
[1757633444333,0.4004,4462.9,4462.8,0.17029477]
[1757633444535,0.7172,4462.9,4462.8,0.17029477]
[1757633447236,0.7172,4462.9,4462.8,0.90299477]
[1757633447528,0.5148,4463.1,4463.0,0.8495]
[1757633447723,0.7172,4463.1,4463.0,0.7327]
[1757633449136,0.198,4463.1,4463.0,0.8495]
[1757633449432,0.7172,4463.1,4463.0,0.7327]
[1757633450432,0.7172,4463.1,4462.8,0.17029477]
[1757633450627,0.834,4463.0,4462.9,0.226]
[1757633450835,0.834,4463.0,4462.8,0.17029477]
[1757633451035,0.5172,4463.0,4462.8,40.97029477]
[1757633451341,0.7172,4462.9,4462.8,0.90299477]
[1757633452231,0.5148,4463.3,4463.2,0.4172]
[1757633452439,0.5148,4463.3,4463.2,0.7327]
[1757633453038,0.7172,4463.3,4463.2,0.7327]
[1757633456943,0.7172,4462.9,4462.8,0.17029477]
[1757633460248,0.7172,4462.9,4462.8,0.38309477]
[1757633460445,0.7172,4462.9,4462.8,0.68319477]
[1757633465048,0.7172,4462.9,4462.8,0.17029477]
[1757633465649,0.7172,4462.9,4462.8,0.68319477]
[1757633472149,0.7172,4462.9,4462.8,0.38309477]
[1757633473261,0.7172,4462.9,4462.8,0.68319477]
[1757633474466,0.7172,4462.9,4462.8,0.38309477]
[1757633475268,0.7172,4462.9,4462.8,0.68319477]
[1757633475563,0.7172,4462.9,4462.8,0.17029477]
[1757633475861,0.7172,4462.9,4462.0,0.1168]
[1757633475862,0.7136,4462.1,4462.0,0.5129]
[1757633476058,0.7136,4462.1,4462.0,0.7095]
[1757633476965,0.7136,4462.1,4462.0,2.31323214]
[1757633477166,0.7136,4462.1,4462.0,0.7095]
[1757633477469,0.7136,4462.9,4462.8,0.5129]
[1757633477660,0.8786,4462.9,4462.8,0.5129]
[1757633478065,0.8786,4462.9,4462.8,0.2128]
[1757633478364,0.5835,4462.9,4462.2,0.3001]
[1757633478567,0.7136,4462.8,4462.7,0.5129]
[1757633479366,0.7136,4462.8,4462.7,0.2128]
[1757633480365,0.7136,4462.8,4462.5,0.3001]
[1757633480564,0.226,4462.9,4462.1,0.3001]
[1757633480565,0.1197,4462.5,4462.1,0.3001]
[1757633480765,0.7136,4462.2,4462.1,0.3001]
[1757633481155,0.7136,4462.2,4462.1,0.5129]
[1757633481553,0.7136,4462.2,4462.1,0.7095]
[1757633482468,0.7312,4462.6,4462.5,0.4094]
[1757633482667,0.7312,4462.6,4462.5,0.7095]
[1757633482867,0.9396,4462.6,4462.5,0.7095]
[1757633487577,0.7196,4462.2,4462.1,2.30957308]
[1757633490374,0.3011,4462.9,4462.2,0.2932]
[1757633490578,0.5019,4462.9,4462.8,0.693]
[1757633491980,0.6974,4462.9,4462.8,0.693]
[1757633492178,3.9052,4462.9,4462.8,0.693]
[1757633497682,3.4086,4462.9,4462.8,0.693]
[1757633497979,3.7097,4462.9,4462.8,0.693]